fUSD/lending_fUSD_20241225
["ID","MTS","AMOUNT","RATE_DAILY","PERIOD"]
[346623927,1735128682472,-500.0,0.00012707,2]
[346623928,1735128682481,-500.0,0.00012707,2]
[346623929,1735128682490,-500.0,0.00012707,2]
[346623930,1735128682500,-500.0,0.00012707,2]
[346623931,1735128682510,-500.0,0.00012707,2]
[346623932,1735128682520,-393.59477103,0.00012707,2]
[346623933,1735128682530,-500.0,0.00012707,2]
[346623934,1735128682540,-466.86284775,0.00012707,2]
[346623935,1735128682550,-522.45,0.00012707,2]
[346623936,1735128682560,-500.0,0.00012707,2]
[346623937,1735128682571,-707.46,0.00012707,2]
[346623938,1735128682580,-163.85407061,0.00012707,2]
[346623939,1735128682590,-500.0,0.00012707,2]
[346623940,1735128682599,-500.0,0.00012707,2]
[346623941,1735128682608,-500.0,0.00012707,2]
[346623942,1735128682617,-569.02,0.00012707,2]
[346623943,1735128682627,-184.38641933,0.00012707,2]
[346623944,1735128682636,-500.0,0.00012707,2]
[346623945,1735128682645,-500.0,0.00012707,2]
[346623946,1735128682654,-500.0,0.00012707,2]
[346623947,1735128682663,-500.0,0.00012707,2]
[346623948,1735128682673,-500.0,0.00012707,2]
[346623949,1735128682743,-500.0,0.00012707,2]
[346623950,1735128682753,-500.0,0.00012707,2]
[346623951,1735128682765,-526.98,0.00012707,2]
[346623952,1735128682774,-500.0,0.00012707,2]
[346623953,1735128682784,-553.95,0.00012707,2]
[346623954,1735128682793,-500.0,0.00012707,2]
[346623955,1735128682802,-500.0,0.00012707,2]
[346623956,1735128682812,-500.0,0.00012707,2]
[346623957,1735128682820,-522.26,0.00012707,2]
[346623958,1735128682830,-500.0,0.00012707,2]
[346623959,1735128682838,-500.0,0.00012707,2]
[346623960,1735128682847,-500.0,0.00012707,2]
[346623961,1735128682857,-928.31,0.00012707,2]
[346623962,1735128682866,-500.0,0.00012707,2]
[346623963,1735128682875,-369.87265897,0.00012707,2]
[346623964,1735128682885,-500.0,0.00012707,2]
[346623965,1735128682894,-500.0,0.00012707,2]
[346623966,1735128682904,-500.0,0.00012707,2]
[346623967,1735128682914,-709.08,0.00012707,2]
[346623968,1735128682923,-500.0,0.00012707,2]
[346623969,1735128682932,-500.0,0.00012707,2]
[346623970,1735128682942,-500.0,0.00012707,2]
[346623971,1735128682952,-530.49,0.00012707,2]
[346623972,1735128682961,-682.85,0.00012707,2]
[346623973,1735128682970,-500.0,0.00012707,2]
[346623974,1735128682980,-814.0,0.00012707,2]
[346623975,1735128682991,-515.72,0.00012707,2]
[346623976,1735128683000,-500.0,0.00012707,2]
[346623977,1735128683011,-500.0,0.00012707,2]
[346623978,1735128683020,-500.0,0.00012707,2]
[346623979,1735128683029,-683.76,0.00012707,2]
[346623980,1735128683039,-252.58312676,0.00012707,2]
[346623981,1735128683048,-500.0,0.00012707,2]
[346623982,1735128683058,-560.83,0.00012707,2]
[346623983,1735128683067,-3881.42,0.00012707,2]
[346623984,1735128683076,-500.0,0.00012707,2]
[346623985,1735128683086,-500.0,0.00012707,2]
[346623986,1735128683095,-500.0,0.00012707,2]
[346623987,1735128683104,-3517.65,0.00012707,2]
[346623988,1735128683115,-500.0,0.00012707,2]
[346623989,1735128683124,-1077.62,0.00012707,2]
[346623990,1735128683134,-500.0,0.00012707,2]
[346623991,1735128683145,-2742.79,0.00012707,2]
[346623992,1735128683155,-500.0,0.00012707,2]
[346623993,1735128683164,-1464.0,0.00012707,2]
[346623994,1735128683174,-615.79,0.00012707,2]
[346623995,1735128683184,-500.0,0.00012707,2]
[346623996,1735128683193,-509.27,0.00012707,2]
[346623997,1735128683205,-580.77,0.00012707,2]
[346623998,1735128683214,-824.37,0.00012707,2]
[346623999,1735128683223,-500.0,0.00012707,2]
[346624000,1735128683232,-1158.45,0.00012707,2]
[346624001,1735128683243,-636.41,0.00012707,2]
[346624002,1735128683252,-500.0,0.00012707,2]
[346624003,1735128683263,-2110.03,0.00012707,2]
[346624004,1735128683272,-500.0,0.00012707,2]
[346624005,1735128683282,-804.77,0.00012707,2]
[346624006,1735128683291,-500.0,0.00012707,2]
[346624007,1735128683301,-547.17,0.00012707,2]
[346624008,1735128683310,-500.0,0.00012707,2]
[346624009,1735128683319,-866.32,0.00012707,2]
[346624010,1735128683328,-945.85,0.00012707,2]
[346624011,1735128683337,-500.0,0.00012707,2]
[346624012,1735128683347,-500.0,0.00012707,2]
[346624013,1735128683356,-761.44,0.00012707,2]
[346624014,1735128683365,-2036.3,0.00012707,2]
[346624015,1735128683375,-1794.85,0.00012707,2]
[346624016,1735128683387,-500.0,0.00012707,2]
[346624017,1735128683395,-500.0,0.00012707,2]
[346624018,1735128683405,-500.0,0.00012707,2]
[346624019,1735128683415,-317.54987011,0.00012707,2]
[346624020,1735128683424,-500.0,0.00012707,2]
[346624021,1735128683435,-599.82,0.00012707,2]
[346624022,1735128683445,-546.11,0.00012707,2]
[346624023,1735128683455,-500.0,0.00012707,2]
[346624024,1735128683465,-500.0,0.00012707,2]
[346624025,1735128683475,-500.0,0.00012707,2]
[346624026,1735128683485,-500.0,0.00012707,2]
[346624027,1735128683495,-500.0,0.00012707,2]
[346624028,1735128683504,-410.47,0.00012707,2]
[346624029,1735128683515,-500.0,0.00012707,2]
[346624030,1735128683525,-500.0,0.00012707,2]
[346624031,1735128683537,-927.77,0.00012707,2]
[346624032,1735128683548,-547.58,0.00012707,2]
[346624033,1735128683557,-252.216594,0.00012707,2]
[346624034,1735128683566,-1123.4,0.00012707,2]
[346624035,1735128683576,-151.0,0.00012707,2]
[346624036,1735128683586,-500.0,0.00012707,2]
[346624037,1735128683596,-500.0,0.00012707,2]
[346624038,1735128683605,-172.855524,0.00012707,2]
[346624039,1735128683614,-500.0,0.00012707,2]
[346624040,1735128683623,-767.32,0.00012707,2]
[346624041,1735128683634,-172.855524,0.00012707,2]
[346624042,1735128683644,-274.530124,0.00012707,2]
[346624043,1735128683654,-500.0,0.00012707,2]
[346624044,1735128683664,-500.0,0.00012708,2]
[346624045,1735128683673,-294.46205547,0.00012708,2]
[346624046,1735128683682,-244.90396787,0.00012708,2]
[346624047,1735128683691,-500.0,0.00012708,2]
[346624048,1735128683701,-500.0,0.00012708,2]
[346624049,1735128683710,-500.0,0.00012708,2]
[346624050,1735128683720,-500.0,0.00012708,2]
[346624051,1735128683729,-500.0,0.00012708,2]
[346624052,1735128683738,-500.0,0.00012708,2]
[346624053,1735128683750,-500.0,0.00012708,2]
[346624054,1735128683760,-500.38,0.00012708,2]
[346624055,1735128683769,-500.0,0.00012708,2]
[346624056,1735128683779,-298.49498669,0.00012708,2]
[346624057,1735128683787,-500.0,0.00012708,2]
[346624058,1735128683797,-500.0,0.00012708,2]
[346624059,1735128683806,-500.0,0.00012708,2]
[346624060,1735128683815,-500.0,0.00012708,2]
[346624061,1735128683824,-500.0,0.00012708,2]
[346624062,1735128683834,-500.0,0.00012708,2]
[346624063,1735128683844,-500.0,0.00012708,2]
[346624064,1735128683853,-500.0,0.00012708,2]
[346624065,1735128683863,-500.0,0.00012708,2]
[346624066,1735128683872,-500.0,0.00012708,2]
[346624067,1735128683881,-586.74687699,0.00012708,2]
[346624068,1735128683891,-500.0,0.00012708,2]
[346624069,1735128683900,-500.0,0.00012708,2]
[346624070,1735128683910,-500.0,0.00012708,2]
[346624071,1735128683920,-500.0,0.00012708,2]
[346624072,1735128683929,-500.0,0.00012708,2]
[346624073,1735128683939,-500.0,0.00012708,2]
[346624074,1735128683949,-500.0,0.00012708,2]
[346624075,1735128683958,-177.117986,0.00012718,2]
[346624076,1735128683968,-2283.4526388,0.00012739,2]
[346624077,1735128683977,-1143.24087501,0.0001274,2]
[346624078,1735128683987,-1045.79836494,0.0001274,2]
[346624079,1735128683996,-1136.34507036,0.0001274,2]
[346624080,1735128684005,-153.0,0.0001274,2]
[346624081,1735128684016,-153.0,0.0001274,2]
[346624082,1735128684026,-153.0,0.0001274,2]
[346624083,1735128684036,-153.0,0.0001274,2]
[346624084,1735128684046,-153.0,0.0001274,2]
[346624085,1735128684055,-153.0,0.0001274,2]
[346624086,1735128684064,-153.0,0.0001274,2]
[346624087,1735128684074,-153.0,0.0001274,2]
[346624088,1735128684083,-500.0,0.00012757,2]
[346624089,1735128684093,-500.0,0.00012817,2]
[346624090,1735128684103,-174.08,0.00012817,2]
[346624091,1735128684112,-1500.0,0.00012848,2]
[346624092,1735128684122,-1000.0,0.00012863,2]
[346624093,1735128684131,-1500.0,0.00012869,2]
[346624094,1735128684142,-1502.46661,0.0001287,2]
[346624095,1735128684151,-429.10429252,0.00012874,2]
[346624096,1735128684160,-177.117986,0.00012875,2]
[346624097,1735128684170,-175.906182,0.00012875,2]
[346624098,1735128684179,-3149.41,0.00012876,2]
[346624099,1735128684190,-3149.41,0.00012876,2]
[346624100,1735128684201,-3149.41,0.00012876,2]
[346624101,1735128684212,-3149.41,0.00012876,2]
[346624102,1735128684222,-3149.41,0.00012876,2]
[346624103,1735128684232,-3149.41,0.00012876,2]
[346624104,1735128684243,-3149.41,0.00012876,2]
[346624105,1735128684253,-3149.41,0.00012876,2]
[346624106,1735128684265,-3149.41,0.00012876,2]
[346624107,1735128684276,-3149.41,0.00012876,2]
[346624108,1735128684286,-3149.41,0.00012876,2]
[346624109,1735128684296,-3149.41,0.00012876,2]
[346624110,1735128684306,-3149.41,0.00012876,2]
[346624111,1735128684316,-3149.41,0.00012876,2]
[346624112,1735128684326,-3149.41,0.00012876,2]
[346624113,1735128684335,-3149.41,0.00012876,2]
[346624114,1735128684344,-3149.41,0.00012876,2]
[346624115,1735128684353,-3149.41,0.00012876,2]
[346624116,1735128684363,-3149.41,0.00012876,2]
[346624117,1735128684372,-3149.41,0.00012876,2]
[346624118,1735128684382,-3149.41,0.00012876,2]
[346624119,1735128684391,-3149.41,0.00012876,2]
[346624120,1735128684400,-3149.41,0.00012876,2]
[346624121,1735128684411,-3149.64802664,0.00012876,2]
[346624122,1735128684420,-151.0,0.00012876,2]
[346624123,1735128684430,-151.0,0.00012876,2]
[346624124,1735128684439,-553.45,0.00012881,2]
[346624125,1735128684448,-880.8,0.00012881,2]
[346624126,1735128684458,-1118.26,0.00012881,2]
[346624127,1735128684467,-2148.52,0.00012881,2]
[346624128,1735128684477,-151.0,0.00012881,2]
[346624129,1735128684486,-2193.34,0.00012881,2]
[346624130,1735128684495,-151.0,0.00012881,2]
[346624131,1735128684505,-16076.46,0.00012881,2]
[346624132,1735128684516,-186.526522,0.00012881,2]
[346624133,1735128684526,-186.526522,0.00012881,2]
[346624134,1735128684536,-1560.21,0.00012881,2]
[346624135,1735128684547,-845.03,0.00012881,2]
[346624136,1735128684557,-609.33,0.00012881,2]
[346624137,1735128684566,-1414.46,0.00012881,2]
[346624138,1735128684576,-12903.45,0.00012881,2]
[346624139,1735128684586,-1437.39,0.00012881,2]
[346624140,1735128684596,-1265.16,0.00012881,2]
[346624141,1735128684605,-724.27,0.00012881,2]
[346624142,1735128684615,-2448.87,0.00012881,2]
[346624143,1735128684624,-641.33,0.00012881,2]
[346624144,1735128684635,-500.0,0.00012881,2]
[346624145,1735128684644,-500.0,0.00012881,2]
[346624146,1735128684655,-500.0,0.00012881,2]
[346624147,1735128684665,-1000.0,0.00012881,2]
[346624148,1735128684675,-500.0,0.00012881,2]
[346624149,1735128684685,-1092.28,0.00012881,2]
[346624150,1735128684695,-1099.64,0.00012881,2]
[346624151,1735128684704,-691.57,0.00012881,2]
[346624152,1735128684714,-1390.3,0.00012881,2]
[346624153,1735128684723,-3740.79,0.00012881,2]
[346624154,1735128684732,-751.54,0.00012881,2]
[346624155,1735128684742,-1293.94,0.00012881,2]
[346624156,1735128684751,-991.02,0.00012881,2]
[346624157,1735128684762,-1657.25,0.00012881,2]
[346624158,1735128684772,-948.25,0.00012881,2]
[346624159,1735128684781,-591.97,0.00012881,2]
[346624160,1735128684791,-551.06,0.00012881,2]
[346624161,1735128684800,-6548.62,0.00012881,2]
[346624162,1735128684810,-699.03,0.00012881,2]
[346624163,1735128684819,-500.0,0.00012881,2]
[346624164,1735128684828,-500.0,0.00012881,2]
[346624165,1735128684838,-1198.97,0.00012881,2]
[346624166,1735128684847,-1000.0,0.00012899,2]
[346624167,1735128684856,-1028.00137527,0.000129,2]
[346624168,1735128684866,-14232.63996313,0.000129,2]
[346624169,1735128684875,-79150.29979295,0.000129,2]
[346624170,1735128684885,-154.95509585,0.000129,2]
[346624171,1735128684896,-185.49956893,0.000129,2]
[346624172,1735128684906,-185.49956893,0.000129,2]
[346624173,1735128684915,-185.49956893,0.000129,2]
[346624174,1735128684925,-185.49956893,0.000129,2]
[346624175,1735128684935,-185.49956893,0.000129,2]
[346624176,1735128684944,-185.49956893,0.000129,2]
[346624177,1735128684955,-151.0,0.000129,2]
[346624178,1735128684964,-151.0,0.000129,2]
[346624179,1735128684974,-151.0,0.000129,2]
[346624180,1735128684983,-156.719972,0.00012927,2]
[346624181,1735128684993,-156.719972,0.00012927,2]
[346624182,1735128685003,-569.33,0.00012927,2]
[346624183,1735128685015,-299.24,0.00012927,2]
[346624184,1735128685025,-5023.55,0.00012927,2]
[346624185,1735128685035,-1087.51,0.00012927,2]
[346624186,1735128685044,-1970.85,0.00012927,2]
[346624187,1735128685054,-909.16,0.00012927,2]
[346624188,1735128685064,-500.0,0.00012927,2]
[346624189,1735128685074,-733.78,0.00012927,2]
[346624190,1735128685083,-500.0,0.00012927,2]
[346624191,1735128685093,-500.0,0.00012927,2]
[346624192,1735128685102,-500.0,0.00012927,2]
[346624193,1735128685112,-500.0,0.00012927,2]
[346624194,1735128685121,-1258.91,0.00012927,2]
[346624195,1735128685131,-500.0,0.00012928,2]
[346624196,1735128685140,-749.88,0.00012928,2]
[346624197,1735128685150,-500.0,0.00012928,2]
[346624198,1735128685159,-523.82,0.00012928,2]
[346624199,1735128685168,-500.0,0.00012928,2]
[346624200,1735128685177,-500.0,0.00012928,2]
[346624201,1735128685186,-514.3,0.00012928,2]
[346624202,1735128685196,-500.0,0.00012928,2]
[346624203,1735128685209,-500.0,0.00012928,2]
[346624204,1735128685218,-500.0,0.00012928,2]
[346624205,1735128685229,-500.0,0.00012928,2]
[346624206,1735128685238,-500.0,0.00012928,2]
[346624207,1735128685247,-527.62748159,0.00012928,2]
[346624208,1735128685257,-500.0,0.00012928,2]
[346624209,1735128685269,-500.0,0.00012928,2]
[346624210,1735128685281,-500.0,0.00012928,2]
[346624211,1735128685293,-664.54,0.00012928,2]
[346624212,1735128685303,-500.0,0.00012928,2]
[346624213,1735128685313,-500.0,0.00012928,2]
[346624214,1735128685323,-500.0,0.00012928,2]
[346624215,1735128685333,-500.0,0.00012928,2]
[346624216,1735128685343,-534.98,0.00012928,2]
[346624217,1735128685352,-524.24,0.00012928,2]
[346624218,1735128685362,-664.77,0.00012928,2]
[346624219,1735128685371,-643.64,0.00012928,2]
[346624220,1735128685381,-500.0,0.00012928,2]
[346624221,1735128685390,-500.0,0.00012928,2]
[346624222,1735128685400,-500.0,0.00012928,2]
[346624223,1735128685409,-668.93,0.00012928,2]
[346624224,1735128685418,-518.15,0.00012928,2]
[346624225,1735128685428,-553.78,0.00012928,2]
[346624226,1735128685437,-597.08,0.00012928,2]
[346624227,1735128685446,-679.22,0.00012928,2]
[346624228,1735128685456,-694.93,0.00012928,2]
[346624229,1735128685466,-500.0,0.00012928,2]
[346624230,1735128685476,-500.0,0.00012928,2]
[346624231,1735128685485,-500.0,0.00012928,2]
[346624232,1735128685495,-708.83,0.00012928,2]
[346624233,1735128685505,-500.0,0.00012928,2]
[346624234,1735128685515,-465.9633849,0.00012928,2]
[346624235,1735128685525,-500.0,0.00012928,2]
[346624236,1735128685535,-521.0,0.00012928,2]
[346624237,1735128685545,-500.0,0.00012928,2]
[346624238,1735128685555,-500.0,0.00012928,2]
[346624239,1735128685565,-500.0,0.00012928,2]
[346624240,1735128685575,-500.0,0.00012928,2]
[346624241,1735128685585,-614.84,0.00012928,2]
[346624242,1735128685594,-500.0,0.00012928,2]
[346624243,1735128685604,-680.48,0.00012928,2]
[346624244,1735128685614,-500.0,0.00012928,2]
[346624245,1735128685624,-500.0,0.00012928,2]
[346624246,1735128685634,-567.62,0.00012928,2]
[346624247,1735128685644,-500.0,0.00012928,2]
[346624248,1735128685653,-1251.67,0.00012928,2]
[346624249,1735128685663,-860.53,0.00012928,2]
[346624250,1735128685672,-1103.81,0.00012928,2]
[346624251,1735128685682,-500.0,0.00012928,2]
[346624252,1735128685691,-781.68,0.00012928,2]
[346624253,1735128685700,-500.0,0.00012928,2]
[346624254,1735128685710,-564.71,0.00012928,2]
[346624255,1735128685719,-500.0,0.00012928,2]
[346624256,1735128685729,-500.0,0.00012935,2]
[346624257,1735128685738,-500.0,0.00012935,2]
[346624258,1735128685748,-500.0,0.00012935,2]
[346624259,1735128685757,-500.0,0.00012935,2]
[346624260,1735128685768,-500.0,0.00012935,2]
[346624261,1735128685777,-440.1759,0.00012935,2]
[346624262,1735128685786,-1000.0,0.00012935,2]
[346624263,1735128685796,-1000.0,0.00012935,2]
[346624264,1735128685806,-1000.0,0.00012935,2]
[346624265,1735128685816,-1000.0,0.00012935,2]
[346624266,1735128685825,-1000.0,0.00012935,2]
[346624267,1735128685835,-1000.0,0.00012935,2]
[346624268,1735128685844,-1000.0,0.00012935,2]
[346624269,1735128685853,-1000.0,0.00012935,2]
[346624270,1735128685863,-1000.0,0.00012935,2]
[346624271,1735128685872,-1000.0,0.00012935,2]
[346624272,1735128685881,-1000.0,0.00012935,2]
[346624273,1735128685890,-1000.0,0.00012935,2]
[346624274,1735128685899,-1000.0,0.00012935,2]
[346624275,1735128685908,-1000.0,0.00012935,2]
[346624276,1735128685917,-1000.0,0.00012935,2]
[346624277,1735128685926,-1000.0,0.00012935,2]
[346624278,1735128685936,-1000.0,0.00012935,2]
[346624279,1735128685945,-1000.0,0.00012935,2]
[346624280,1735128685955,-1000.0,0.00012935,2]
[346624281,1735128685964,-1000.0,0.00012935,2]
[346624282,1735128685974,-1000.0,0.00012935,2]
[346624283,1735128685983,-1000.0,0.00012935,2]
[346624284,1735128685992,-1000.0,0.00012935,2]
[346624285,1735128686002,-1000.0,0.00012935,2]
[346624286,1735128686012,-1000.0,0.00012935,2]
[346624287,1735128686022,-1000.0,0.00012935,2]
[346624288,1735128686031,-1000.0,0.00012935,2]
[346624289,1735128686041,-1000.0,0.00012935,2]
[346624290,1735128686050,-1000.0,0.00012935,2]
[346624291,1735128686060,-1000.0,0.00012935,2]
[346624292,1735128686071,-1000.0,0.00012935,2]
[346624293,1735128686081,-1000.0,0.00012935,2]
[346624294,1735128686091,-1000.0,0.00012935,2]
[346624295,1735128686101,-1000.0,0.00012935,2]
[346624296,1735128686111,-1000.0,0.00012935,2]
[346624297,1735128686120,-1000.0,0.00012935,2]
[346624298,1735128686131,-1000.0,0.00012935,2]
[346624299,1735128686140,-1000.0,0.00012935,2]
[346624300,1735128686151,-1000.0,0.00012935,2]
[346624301,1735128686161,-1000.0,0.00012935,2]
[346624302,1735128686170,-1000.0,0.00012935,2]
[346624303,1735128686179,-1000.0,0.00012935,2]
[346624304,1735128686191,-926.5599,0.00012935,2]
[346624305,1735128686201,-1500.0,0.0001296,2]
[346624306,1735128686214,-1000.0,0.0001297,2]
[346624307,1735128686225,-500.0,0.0001297,2]
[346624308,1735128686235,-356.44797086,0.00012973,2]
[346624309,1735128686247,-500.0,0.00012973,2]
[346624310,1735128686257,-500.0,0.00012976,2]
[346624311,1735128686268,-150.0,0.00012976,2]
[346624312,1735128686277,-500.0,0.00012976,2]
[346624313,1735128686290,-500.0,0.00012976,2]
[346624314,1735128686300,-2718.0,0.00012976,2]
[346624315,1735128686310,-1634.0,0.00012976,2]
[346624316,1735128686320,-150.0,0.00012976,2]
[346624317,1735128686330,-150.0,0.00012976,2]
[346624318,1735128686340,-266.50763306,0.00012976,2]
[346624319,1735128686350,-488.77868203,0.0001298,2]
[346624320,1735128686360,-2290.86,0.0001298,2]
[346624321,1735128686370,-500.0,0.0001298,2]
[346624322,1735128686380,-725.94,0.0001298,2]
[346624323,1735128686390,-333.991413,0.0001298,2]
[346624324,1735128686400,-742.36,0.0001298,2]
[346624325,1735128686410,-324.158438,0.0001298,2]
[346624326,1735128686419,-810.66,0.0001298,2]
[346624327,1735128686430,-622.7,0.0001298,2]
[346624328,1735128686441,-3413.77,0.0001298,2]
[346624329,1735128686450,-732.61,0.0001298,2]
[346624330,1735128686460,-5731.22,0.0001298,2]
[346624331,1735128686470,-939.83,0.0001298,2]
[346624332,1735128686479,-500.0,0.0001298,2]
[346624333,1735128686489,-216.09,0.0001298,2]
[346624334,1735128686499,-168.82616,0.0001298,2]
[346624335,1735128686509,-736.41,0.0001298,2]
[346624336,1735128686519,-180.261303,0.0001298,2]
[346624337,1735128686528,-1791.77,0.0001298,2]
[346624338,1735128686539,-854.77,0.0001298,2]
[346624339,1735128686549,-523.48,0.0001298,2]
[346624340,1735128686559,-3369.86,0.0001298,2]
[346624341,1735128686568,-1848.99,0.0001298,2]
[346624342,1735128686578,-1399.72,0.0001298,2]
[346624343,1735128686588,-500.0,0.0001298,2]
[346624344,1735128686598,-1169.93,0.0001298,2]
[346624345,1735128686608,-2596.0,0.0001298,2]
[346624346,1735128686617,-6977.77,0.0001298,2]
[346624347,1735128686627,-500.0,0.0001298,2]
[346624348,1735128686637,-1434.35,0.0001298,2]
[346624349,1735128686646,-991.16,0.0001298,2]
[346624350,1735128686656,-588.26,0.0001298,2]
[346624351,1735128686666,-500.0,0.0001298,2]
[346624352,1735128686675,-1017.45,0.0001298,2]
[346624353,1735128686685,-514.73,0.0001298,2]
[346624354,1735128686694,-610.38,0.0001298,2]
[346624355,1735128686703,-1649.81,0.0001298,2]
[346624356,1735128686713,-568.63391831,0.00012981,2]
[346624357,1735128686722,-500.0,0.00012981,2]
[346624358,1735128686732,-500.0,0.00012981,2]
[346624359,1735128686742,-500.0,0.00012981,2]
[346624360,1735128686752,-500.0,0.00012981,2]
[346624361,1735128686762,-500.0,0.00012981,2]
[346624362,1735128686771,-500.0,0.00012981,2]
[346624363,1735128686781,-500.0,0.00012981,2]
[346624364,1735128686791,-500.0,0.00012981,2]
[346624365,1735128686802,-500.0,0.00012981,2]
[346624366,1735128686813,-500.0,0.00012981,2]
[346624367,1735128686824,-500.0,0.00012981,2]
[346624368,1735128686834,-500.0,0.00012981,2]
[346624369,1735128686843,-500.0,0.00012981,2]
[346624370,1735128686853,-500.0,0.00012981,2]
[346624371,1735128686863,-500.0,0.00012981,2]
[346624372,1735128686872,-522.45,0.00012981,2]
[346624373,1735128686882,-500.0,0.00012981,2]
[346624374,1735128686892,-707.46,0.00012981,2]
[346624375,1735128686901,-500.0,0.00012981,2]
[346624376,1735128686911,-500.0,0.00012981,2]
[346624377,1735128686920,-500.0,0.00012981,2]
[346624378,1735128686930,-569.02,0.00012981,2]
[346624379,1735128686940,-500.0,0.00012981,2]
[346624380,1735128686950,-500.0,0.00012981,2]
[346624381,1735128686959,-500.0,0.00012981,2]
[346624382,1735128686970,-500.0,0.00012981,2]
[346624383,1735128686980,-500.0,0.00012981,2]
[346624384,1735128686990,-500.0,0.00012981,2]
[346624385,1735128687000,-500.0,0.00012981,2]
[346624386,1735128687009,-526.98,0.00012981,2]
[346624387,1735128687020,-500.0,0.00012981,2]
[346624388,1735128687029,-553.95,0.00012981,2]
[346624389,1735128687039,-500.0,0.00012981,2]
[346624390,1735128687049,-500.0,0.00012981,2]
[346624391,1735128687059,-500.0,0.00012981,2]
[346624392,1735128687069,-522.26,0.00012981,2]
[346624393,1735128687080,-500.0,0.00012981,2]
[346624394,1735128687089,-500.0,0.00012981,2]
[346624395,1735128687099,-636.71829031,0.00012981,2]
[346624396,1735128687109,-928.31,0.00012981,2]
[346624397,1735128687119,-500.0,0.00012981,2]
[346624398,1735128687129,-500.0,0.00012981,2]
[346624399,1735128687139,-500.0,0.00012981,2]
[346624400,1735128687149,-500.0,0.00012981,2]
[346624401,1735128687158,-709.08,0.00012981,2]
[346624402,1735128687168,-500.0,0.00012981,2]
[346624403,1735128687178,-500.0,0.00012981,2]
[346624404,1735128687189,-500.0,0.00012981,2]
[346624405,1735128687199,-530.49,0.00012981,2]
[346624406,1735128687211,-682.85,0.00012981,2]
[346624407,1735128687221,-500.0,0.00012981,2]
[346624408,1735128687231,-814.0,0.00012981,2]
[346624409,1735128687240,-515.72,0.00012981,2]
[346624410,1735128687251,-500.0,0.00012981,2]
[346624411,1735128687261,-500.0,0.00012981,2]
[346624412,1735128687271,-500.0,0.00012981,2]
[346624413,1735128687282,-683.76,0.00012981,2]
[346624414,1735128687291,-500.0,0.00012981,2]
[346624415,1735128687301,-560.83,0.00012981,2]
[346624416,1735128687310,-3881.42,0.00012981,2]
[346624417,1735128687320,-500.0,0.00012981,2]
[346624418,1735128687331,-500.0,0.00012981,2]
[346624419,1735128687341,-500.0,0.00012981,2]
[346624420,1735128687351,-3517.65,0.00012981,2]
[346624421,1735128687361,-500.0,0.00012981,2]
[346624422,1735128687372,-1077.62,0.00012981,2]
[346624423,1735128687382,-500.0,0.00012981,2]
[346624424,1735128687392,-2742.79,0.00012981,2]
[346624425,1735128687404,-500.0,0.00012981,2]
[346624426,1735128687416,-1464.0,0.00012981,2]